bitfinex/quotes_BTCUSD_20251113
["timestamp","ask_amount","ask_price","bid_price","bid_amount"]
[1763053957376,0.30702839,100650.0,100640.0,0.28747131]
[1763053957585,0.36702839,100650.0,100640.0,0.28747131]
[1763053957798,0.36702839,100650.0,100640.0,0.08874318]
[1763053958016,0.45601839,100650.0,100640.0,0.08974318]
[1763053958225,0.45601839,100650.0,100640.0,0.28847131]
[1763053958432,0.45601839,100650.0,100640.0,0.19986801]
[1763053958644,0.45601839,100650.0,100640.0,0.00113988]
[1763053958854,0.45601839,100650.0,100640.0,0.00213988]
[1763053959487,0.45601839,100650.0,100640.0,0.00013988]
[1763053959688,0.45601839,100650.0,100640.0,0.00113988]
[1763053959912,1.20044005,100650.0,100640.0,0.00113988]
[1763053960129,0.45601839,100650.0,100640.0,0.00213988]
[1763053960370,0.39109839,100650.0,100640.0,0.20086801]
[1763053960589,0.29542109,100670.0,100650.0,0.19870839]
[1763053960797,0.16637358,100680.0,100660.0,0.29726865]
[1763053961013,0.10832,100680.0,100670.0,0.19866891]
[1763053961210,0.30696918,100680.0,100660.0,0.29726865]
[1763053961427,0.30206891,100670.0,100650.0,0.2520438]
[1763053961645,0.39105891,100670.0,100650.0,0.2520438]
[1763053961852,0.19868865,100660.0,100650.0,0.2520438]
[1763053962486,0.19870839,100650.0,100640.0,0.22640031]
[1763053962711,0.26360865,100660.0,100650.0,0.19870839]
[1763053962930,0.26360865,100660.0,100650.0,0.24210839]
[1763053963186,0.0434,100670.0,100660.0,0.19868865]
[1763053963418,0.06492,100670.0,100660.0,0.26033865]
[1763053963663,0.06592,100670.0,100660.0,0.26033865]
[1763053963881,0.06492,100670.0,100660.0,0.26033865]
[1763053964097,0.31690163,100680.0,100670.0,0.19866891]
[1763053964342,1.04197258,100690.0,100670.0,0.20966891]
[1763053964553,0.29778306,100700.0,100680.0,0.25976918]
[1763053964772,0.20879306,100700.0,100690.0,0.23926945]
[1763053965002,0.27321306,100700.0,100690.0,0.04064]
[1763053965654,0.37138221,100700.0,100690.0,0.04064]
[1763053965875,0.3718485,100700.0,100690.0,0.04064]
[1763053966063,0.19910897,100700.0,100690.0,0.30091945]
[1763053966289,0.20007602,100700.0,100690.0,0.30091945]
[1763053966504,0.00146629,100700.0,100690.0,0.30091945]
[1763053966721,0.20007602,100700.0,100690.0,0.30091945]
[1763053966932,0.00146629,100700.0,100690.0,0.30091945]
[1763053967140,0.00246629,100700.0,100690.0,0.30091945]
[1763053967365,0.00146629,100700.0,100690.0,0.30091945]
[1763053967808,0.00046629,100700.0,100690.0,0.38846945]
[1763053968231,0.19862945,100690.0,100680.0,0.04064]
[1763053968708,0.28806602,100700.0,100680.0,0.30093918]
[1763053968924,0.19864918,100680.0,100670.0,0.20860235]
[1763053969114,0.92017901,100700.0,100680.0,0.19864918]
[1763053969357,0.2739265,100700.0,100690.0,0.23926945]
[1763053969573,0.19862945,100690.0,100680.0,0.19864918]
[1763053969773,0.19864918,100680.0,100670.0,0.53160235]
[1763053969969,0.19864918,100680.0,100670.0,0.19866891]
[1763053970302,0.19864918,100680.0,100660.0,0.29617308]
[1763053970497,0.19864918,100680.0,100670.0,0.19866891]
[1763053970992,0.19864918,100680.0,100670.0,0.001]
[1763053971202,0.34763918,100680.0,100660.0,0.27990302]
[1763053971414,0.34763918,100680.0,100660.0,0.69045302]
[1763053971572,0.25864918,100680.0,100670.0,0.19866891]
[1763053971845,0.00046629,100700.0,100690.0,0.19862945]
[1763053972020,0.26399602,100700.0,100690.0,0.30091945]
[1763053972222,0.06538629,100700.0,100690.0,0.30091945]
[1763053972435,0.26399602,100700.0,100690.0,0.30091945]
[1763053973199,0.06638629,100700.0,100690.0,0.38846945]
[1763053973611,0.26499602,100700.0,100690.0,0.23926945]
[1763053973834,0.32499602,100700.0,100690.0,0.04064]
[1763053974041,0.41398602,100700.0,100690.0,0.04064]
[1763053974243,0.19864741,100690.0,100670.0,0.20860235]
[1763053974444,0.29021741,100690.0,100670.0,0.20860235]
[1763053974655,0.29021741,100690.0,100680.0,0.19864918]
[1763053974892,0.20122741,100690.0,100680.0,0.19864918]
[1763053975842,0.19864918,100680.0,100670.0,0.29615235]
[1763053976090,0.19864918,100680.0,100670.0,0.36743229]
[1763053976287,0.19864918,100680.0,100670.0,0.42908229]
[1763053976492,0.19864741,100690.0,100670.0,0.42908229]
[1763053976725,0.19864918,100680.0,100670.0,0.42908229]
[1763053976941,0.19864918,100680.0,100670.0,0.33259885]
[1763053977094,0.28763741,100690.0,100680.0,0.19864918]
[1763053977294,0.19864741,100690.0,100680.0,0.19864918]
[1763053977504,0.25864741,100690.0,100680.0,0.19864918]
[1763053978060,0.19864741,100690.0,100680.0,0.26029918]
[1763053978270,0.19864741,100690.0,100680.0,0.06165]
[1763053978478,0.19864918,100680.0,100670.0,0.26994885]
[1763053979102,0.28763741,100690.0,100680.0,0.19864918]
[1763053979282,0.19864741,100690.0,100670.0,0.41914885]
[1763053979485,0.19864741,100690.0,100680.0,0.19864918]
[1763053979926,0.19864918,100680.0,100670.0,0.26994885]
[1763053980131,0.19864918,100680.0,100670.0,0.27094885]
[1763053980331,0.19864918,100680.0,100670.0,0.33172885]
[1763053980615,0.34904918,100680.0,100660.0,0.41566769]
[1763053980843,0.45739918,100680.0,100670.0,0.19866891]
[1763053981069,0.19907602,100700.0,100690.0,0.19862945]
[1763053981291,0.26399602,100700.0,100690.0,0.23675945]
[1763053981502,0.19907602,100700.0,100690.0,0.29853945]
[1763053981711,0.25861602,100700.0,100690.0,0.23675945]
[1763053982134,0.25861602,100700.0,100690.0,0.03813]
[1763053982351,0.25961602,100700.0,100690.0,0.03813]
[1763053982846,0.20007602,100700.0,100690.0,0.23675945]
[1763053983056,0.00146629,100700.0,100690.0,0.39127945]
[1763053983708,0.20107602,100700.0,100690.0,0.29853945]
[1763053983922,0.19863926,100690.0,100670.0,0.27988229]
[1763053984190,0.24206926,100690.0,100680.0,0.19864918]
[1763053984654,0.24206926,100690.0,100680.0,0.26042918]
[1763053984655,0.19863926,100690.0,100680.0,0.26042918]
[1763053984901,0.28993602,100700.0,100690.0,0.19862945]
[1763053985108,0.19862945,100690.0,100680.0,0.26042918]
[1763053985556,0.19862945,100690.0,100680.0,0.26033918]
[1763053986407,0.24475945,100690.0,100670.0,0.37262229]
[1763053986619,0.30586945,100690.0,100670.0,0.36555229]
[1763053986836,0.2739265,100700.0,100690.0,0.19862945]
[1763053987097,0.2749265,100700.0,100690.0,0.19862945]
[1763053987312,0.2749265,100700.0,100690.0,0.03564]
[1763053987528,0.2749265,100700.0,100690.0,0.29595945]
[1763053987940,0.92017901,100700.0,100690.0,0.29595945]
[1763053988413,0.3356465,100700.0,100690.0,0.03564]
[1763053988610,0.19862945,100690.0,100680.0,0.19864918]
[1763053988821,0.98289901,100700.0,100690.0,0.23426945]
[1763053989028,0.3617865,100700.0,100690.0,0.03564]
[1763053989237,0.4235065,100700.0,100690.0,0.03564]
[1763053989446,0.19864918,100680.0,100670.0,0.15694994]
[1763053989659,0.24475945,100690.0,100670.0,0.35561885]
[1763053989866,0.19864918,100680.0,100670.0,0.35561885]
[1763053990068,0.24475945,100690.0,100680.0,0.19864918]
[1763053990496,0.19864918,100680.0,100670.0,0.26994885]
[1763053990717,0.20261918,100680.0,100670.0,0.07127994]
[1763053990913,0.28947918,100680.0,100670.0,0.07127994]
[1763053991197,0.93573169,100680.0,100670.0,0.27094885]
[1763053991438,0.93573169,100680.0,100670.0,0.07227994]
[1763053991659,0.19864918,100680.0,100670.0,0.33263885]
[1763053991871,0.19864918,100680.0,100670.0,0.33163885]
[1763053992109,0.19864918,100680.0,100670.0,0.33263885]
[1763053992305,0.19864918,100680.0,100670.0,0.33163885]
[1763053992558,0.33161945,100690.0,100680.0,0.19864918]
[1763053992775,0.33161945,100690.0,100670.0,0.33163885]
[1763053992776,0.19864918,100680.0,100670.0,0.26994885]
[1763053993206,0.19864918,100680.0,100670.0,0.33163885]
[1763053993404,0.97787196,100690.0,100670.0,0.33163885]
[1763053993865,1.04279196,100690.0,100670.0,0.33163885]
[1763053994120,1.04379196,100690.0,100670.0,0.33163885]
[1763053994347,1.04379196,100690.0,100680.0,0.07127994]
[1763053994819,1.10551196,100690.0,100680.0,0.26992912]
[1763053995103,1.10551196,100690.0,100680.0,0.07127994]
[1763053995317,1.10651196,100690.0,100680.0,0.07127994]
[1763053995547,1.10551196,100690.0,100680.0,0.07127994]
[1763053995795,0.19864918,100680.0,100670.0,0.07127994]
[1763053996013,0.38764833,100680.0,100670.0,0.07127994]
[1763053996224,0.06492,100680.0,100670.0,0.07127994]
[1763053996432,0.06492,100680.0,100670.0,0.41730885]
[1763053996650,0.89301196,100690.0,100670.0,0.41730885]
[1763053996833,0.31167945,100690.0,100680.0,0.19864918]
[1763053997068,0.39753945,100690.0,100670.0,0.41730885]
[1763053997294,1.04279196,100690.0,100680.0,0.19864918]
[1763053997707,1.10451196,100690.0,100670.0,0.27094885]
[1763053997927,1.01865196,100690.0,100670.0,0.35661885]
[1763053998132,0.19864918,100680.0,100670.0,0.35661885]
[1763053998566,0.19864918,100680.0,100670.0,0.41830885]
[1763053998774,0.24575945,100690.0,100680.0,0.19864918]
[1763053998981,0.11205,100690.0,100680.0,0.26992912]
[1763053999192,0.31067945,100690.0,100680.0,0.26992912]
[1763053999408,0.30967945,100690.0,100680.0,0.07127994]
[1763053999625,1.10451196,100690.0,100680.0,0.07127994]
[1763053999850,1.10451196,100690.0,100680.0,0.26992912]
[1763053999851,0.37139945,100690.0,100680.0,0.26992912]
[1763054000076,0.2090065,100700.0,100690.0,0.19862945]
[1763054000302,0.00046629,100700.0,100690.0,0.34403945]
[1763054000761,0.00046629,100700.0,100690.0,0.41531939]
[1763054001413,0.00246629,100700.0,100690.0,0.41531939]
[1763054001628,0.20007602,100700.0,100690.0,0.41531939]
[1763054001890,0.00146629,100700.0,100690.0,0.41531939]
[1763054002090,0.18798629,100710.0,100690.0,0.41531939]
[1763054002296,0.19860973,100700.0,100690.0,0.41531939]
[1763054003190,0.18798629,100710.0,100700.0,0.19860973]
[1763054003645,0.19860973,100700.0,100690.0,0.31993945]
[1763054003851,0.19862112,100710.0,100690.0,0.23426945]
[1763054004067,0.20855062,100710.0,100700.0,0.26029973]
[1763054004487,0.20955062,100710.0,100700.0,0.26029973]
[1763054004708,0.002,100710.0,100700.0,0.34596973]
[1763054004942,0.20059001,100710.0,100700.0,0.34596973]
[1763054005146,0.002,100710.0,100700.0,0.34596973]
[1763054006426,0.001,100710.0,100700.0,0.34596973]
[1763054006851,0.20847855,100730.0,100710.0,0.19857402]
[1763054007046,0.19857029,100720.0,100710.0,0.10925]
[1763054007299,0.20861838,100730.0,100710.0,0.30784001]
[1763054007512,0.25474838,100730.0,100720.0,0.19857029]
[1763054007715,0.04626983,100730.0,100720.0,0.26026029]
[1763054007935,0.19869041,100730.0,100720.0,0.26026029]
[1763054008184,0.00013983,100730.0,100720.0,0.34593029]
[1763054009509,0.00013983,100730.0,100720.0,0.66893029]
[1763054009959,0.00113983,100730.0,100720.0,0.66893029]
[1763054010406,0.00013983,100730.0,100720.0,0.66893029]
[1763054010658,0.00013983,100730.0,100720.0,0.66993029]
[1763054010874,0.19869041,100730.0,100720.0,0.26326029]
[1763054011098,0.00013983,100730.0,100720.0,0.26326029]
[1763054011328,0.19869041,100730.0,100720.0,0.26326029]
[1763054011558,0.24039041,100730.0,100720.0,0.05786]
[1763054011789,0.38472041,100730.0,100720.0,0.002]
[1763054012017,0.29723041,100730.0,100720.0,0.19857029]
[1763054012240,0.19857029,100720.0,100710.0,0.30917001]
[1763054012470,0.97413292,100730.0,100720.0,0.19857029]
[1763054012703,0.00013983,100730.0,100720.0,0.32425029]
[1763054014185,0.00089811,100730.0,100720.0,0.32425029]
[1763054014665,0.19944869,100730.0,100720.0,0.03868]
[1763054014869,0.19857029,100720.0,100710.0,0.30916701]
[1763054015100,0.19857029,100720.0,100710.0,0.22217001]
[1763054015313,0.19907586,100720.0,100710.0,0.27803001]
[1763054015726,0.00050557,100720.0,100710.0,0.36503001]
[1763054016135,0.19907586,100720.0,100710.0,0.36703001]
[1763054016362,0.19907586,100720.0,100710.0,0.28003001]
[1763054016779,0.19907586,100720.0,100710.0,0.28103001]
[1763054017191,0.19907586,100720.0,100710.0,0.22517001]
[1763054017399,0.98965837,100720.0,100710.0,0.003]
[1763054017636,1.05453837,100720.0,100710.0,0.003]
[1763054018047,0.96704837,100720.0,100710.0,0.20059001]
[1763054018261,0.19859001,100710.0,100700.0,0.23212021]
[1763054018467,0.19859001,100710.0,100700.0,0.22218973]
[1763054018669,0.19860973,100700.0,100690.0,0.30554939]
[1763054019126,0.71221032,100700.0,100690.0,0.30554939]
[1763054019356,0.76905032,100700.0,100690.0,0.30554939]
[1763054019600,0.19860973,100700.0,100690.0,0.36140939]
[1763054020266,0.7538906,100710.0,100690.0,0.36340939]
[1763054020499,0.8413806,100710.0,100690.0,0.36340939]
[1763054020724,0.19860973,100700.0,100690.0,0.36440939]
[1763054020953,0.19860973,100700.0,100690.0,0.36340939]
[1763054021176,0.85654032,100700.0,100690.0,0.10891994]
[1763054021418,0.85654032,100700.0,100690.0,0.30554939]
[1763054021840,0.85654032,100700.0,100690.0,0.07227994]
[1763054022544,0.63532059,100700.0,100690.0,0.30654939]
[1763054022804,0.26348973,100700.0,100690.0,0.36240939]
[1763054023015,0.57848059,100700.0,100690.0,0.36240939]
[1763054023640,0.06488,100700.0,100690.0,0.36240939]
[1763054023874,0.00025281,100710.0,100700.0,0.19860973]
[1763054024083,0.00025281,100710.0,100700.0,0.31920973]
[1763054024502,0.00025281,100710.0,100700.0,0.39048967]
[1763054026901,0.00025281,100710.0,100700.0,0.07127994]
[1763054026902,0.92265341,100710.0,100700.0,0.07127994]
[1763054027122,1.02082256,100710.0,100700.0,0.07127994]
[1763054027355,1.02082256,100710.0,100690.0,0.30553585]
[1763054027582,0.19860973,100700.0,100690.0,0.30553585]
[1763054027810,0.80856032,100700.0,100690.0,0.07127994]
[1763054028032,0.80856032,100700.0,100690.0,0.26990939]
[1763054028482,0.45038197,100710.0,100690.0,0.30554939]
[1763054028709,0.96398256,100710.0,100700.0,0.19860973]
[1763054028929,0.96398256,100710.0,100700.0,0.26988967]
[1763054029180,1.02082256,100710.0,100700.0,0.19860973]
[1763054029403,1.01982256,100710.0,100700.0,0.26988967]
[1763054029626,0.87549256,100710.0,100700.0,0.32574967]
[1763054030065,0.93233256,100710.0,100700.0,0.26988967]
[1763054030286,0.41873197,100710.0,100700.0,0.26988967]
[1763054030721,1.02082256,100710.0,100700.0,0.07127994]
[1763054031555,0.83516341,100710.0,100700.0,0.26988967]
[1763054031775,0.83516341,100710.0,100700.0,0.19860973]
[1763054032413,0.92265341,100710.0,100700.0,0.19860973]
[1763054033031,0.92265341,100710.0,100690.0,0.30554804]
[1763054033239,0.19860973,100700.0,100690.0,0.30554804]
[1763054033472,0.83516341,100710.0,100700.0,0.19860973]
[1763054033694,0.86581341,100710.0,100700.0,0.19860973]
[1763054033907,0.92265341,100710.0,100700.0,0.19860973]
[1763054034136,0.92165341,100710.0,100700.0,0.19860973]
[1763054034356,0.83416341,100710.0,100700.0,0.19860973]
[1763054034789,0.92165341,100710.0,100700.0,0.19860973]
[1763054035229,0.5138534,100710.0,100700.0,0.25446973]
[1763054035517,0.00025281,100710.0,100700.0,0.34146973]
[1763054035960,0.00125281,100710.0,100700.0,0.34146973]
[1763054036585,0.00125281,100710.0,100700.0,0.41274967]
[1763054037496,0.00125281,100710.0,100700.0,0.73574967]
[1763054038378,0.00125281,100710.0,100700.0,0.83574967]
[1763054039284,0.00125281,100710.0,100700.0,0.87916841]
[1763054040142,0.00025281,100710.0,100700.0,0.87916841]
[1763054040447,0.00025281,100710.0,100700.0,0.74874967]
[1763054040758,0.00025281,100710.0,100700.0,0.83675967]
[1763054041270,0.00025281,100710.0,100700.0,0.83475967]
[1763054041537,0.00025281,100710.0,100700.0,1.391779]
[1763054041793,0.00025281,100710.0,100700.0,1.390779]
[1763054042025,0.00025281,100710.0,100700.0,1.31949906]
[1763054042277,0.00025281,100710.0,100700.0,0.80589847]
[1763054042524,0.19884282,100710.0,100700.0,0.55028937]
[1763054042768,0.19884282,100710.0,100700.0,0.8349091]
[1763054043009,0.19884282,100710.0,100700.0,0.22828937]
[1763054043257,1.01586256,100710.0,100700.0,0.17242937]
[1763054043516,1.01586256,100710.0,100700.0,0.101]
[1763054043749,1.35886256,100710.0,100700.0,0.101]
[1763054044020,1.35886256,100710.0,100700.0,0.1]
[1763054045210,1.34086256,100710.0,100700.0,0.1]
[1763054045957,1.34286256,100710.0,100700.0,0.1]
[1763054050576,0.82926197,100710.0,100700.0,0.1]
[1763054051013,0.84926197,100710.0,100700.0,0.1]
[1763054051226,1.36286256,100710.0,100700.0,0.1]
[1763054052255,0.84926197,100710.0,100700.0,0.1]
[1763054052394,1.36286256,100710.0,100700.0,0.1]
[1763054052598,0.84926197,100710.0,100700.0,0.1]
[1763054052803,1.34286256,100710.0,100700.0,0.1]
[1763054054095,0.19862767,100700.0,100680.0,0.20858038]
[1763054054315,0.26350767,100700.0,100690.0,0.19862945]
[1763054054542,0.77710826,100700.0,100690.0,0.19862945]
[1763054054728,0.91747826,100700.0,100690.0,0.19862945]
[1763054054938,0.05837,100700.0,100690.0,0.19862945]
[1763054055144,0.80454206,100710.0,100690.0,0.25219945]
[1763054055357,0.06588,100700.0,100690.0,0.25219945]
[1763054055571,0.85358032,100700.0,100680.0,0.07142937]
[1763054055771,0.19862945,100690.0,100670.0,0.38961913]
[1763054056039,0.24681918,100680.0,100670.0,0.09600937]
[1763054056239,0.19864918,100680.0,100670.0,0.09600937]
[1763054056438,0.25701918,100680.0,100670.0,0.09600937]
[1763054056992,0.27332945,100690.0,100680.0,0.19864918]
[1763054057203,0.27332945,100690.0,100670.0,0.38015457]
[1763054057204,0.41369945,100690.0,100670.0,0.38015457]
[1763054057410,0.24681918,100680.0,100670.0,0.07289566]
[1763054057635,0.32881918,100680.0,100670.0,0.07289566]
[1763054058539,0.84241977,100680.0,100670.0,0.00246629]
[1763054058690,0.86241977,100680.0,100670.0,0.00246629]
[1763054058895,1.18541977,100680.0,100670.0,0.00246629]
[1763054059096,1.18541977,100680.0,100670.0,0.00146629]
[1763054059526,1.18641977,100680.0,100670.0,0.00146629]
[1763054059757,0.67281918,100680.0,100670.0,0.00146629]
[1763054059958,1.18641977,100680.0,100670.0,0.00146629]
[1763054060164,1.25129977,100680.0,100670.0,0.00146629]
[1763054060379,1.76490036,100680.0,100670.0,0.00146629]
[1763054061247,1.78836149,100680.0,100670.0,0.00146629]
[1763054061462,1.78936149,100680.0,100670.0,0.00146629]
[1763054061678,1.84085244,100680.0,100670.0,0.00146629]
[1763054062118,1.90873231,100680.0,100670.0,1e-08]
[1763054062344,1.88427118,100680.0,100670.0,1e-08]
[1763054062557,1.89403138,100680.0,100670.0,1e-08]
[1763054062773,1.91749251,100680.0,100670.0,1e-08]
[1763054063272,1.93757655,100680.0,100670.0,1e-08]
[1763054063776,1.99417221,100680.0,100670.0,1e-08]
[1763054064011,2.0041722,100680.0,100670.0,1e-08]
[1763054064231,4.0031722,100680.0,100670.0,1e-08]
[1763054064491,4.0211722,100680.0,100670.0,1e-08]
[1763054064757,0.21876764,100620.0,100610.0,0.07142937]
[1763054065009,0.89931823,100620.0,100610.0,0.07156925]
[1763054065254,1.07948738,100620.0,100610.0,0.00013988]
[1763054065920,1.40248738,100620.0,100610.0,0.00013988]
[1763054067208,1.40248738,100620.0,100610.0,0.00113988]
[1763054067449,0.98737015,100620.0,100610.0,0.00113988]
[1763054067651,0.98837015,100620.0,100610.0,0.00013988]
[1763054067859,1.50397074,100620.0,100610.0,0.00013988]
[1763054068079,1.50297074,100620.0,100610.0,0.00013988]
[1763054068499,1.50497074,100620.0,100610.0,0.00013988]
[1763054068909,0.99137015,100620.0,100610.0,0.00013988]
[1763054069111,1.50497074,100620.0,100610.0,0.00013988]
[1763054069754,1.44009074,100620.0,100610.0,0.00013988]
[1763054069962,1.40648738,100620.0,100610.0,0.00013988]
[1763054070429,1.34160738,100620.0,100610.0,0.19892727]
[1763054070648,1.12283974,100620.0,100610.0,0.19892727]
[1763054070846,1.18771974,100620.0,100610.0,0.19892727]
[1763054071102,0.67411915,100620.0,100610.0,0.19892727]
[1763054071321,1.18771974,100620.0,100610.0,0.19892727]
[1763054071540,0.28623915,100620.0,100610.0,0.19892727]
[1763054071762,0.35111915,100620.0,100610.0,0.19892727]
[1763054072189,0.54988679,100620.0,100610.0,0.19892727]
[1763054072409,0.28623915,100620.0,100610.0,0.19892727]
[1763054072617,1.06348738,100620.0,100610.0,0.19892727]
[1763054072834,1.06348738,100620.0,100610.0,0.00013988]
[1763054073066,1.16197074,100620.0,100610.0,0.00013988]
[1763054073481,1.48497074,100620.0,100610.0,0.00013988]
[1763054073707,1.40648738,100620.0,100610.0,0.00013988]
[1763054075901,1.38648738,100620.0,100610.0,0.00013988]
[1763054076134,1.40648738,100620.0,100610.0,0.00013988]
[1763054076335,1.34160738,100620.0,100610.0,0.00013988]
[1763054076547,1.38652738,100620.0,100610.0,0.00013988]
[1763054076962,1.32160738,100620.0,100610.0,0.00013988]
[1763054077180,1.32160738,100620.0,100610.0,0.19892727]
[1763054077181,0.28623915,100620.0,100610.0,0.19892727]
[1763054077410,0.004,100620.0,100610.0,0.28268727]
[1763054078253,0.002,100620.0,100610.0,0.28268727]
[1763054079114,0.20076764,100620.0,100610.0,0.28268727]
[1763054079316,0.002,100620.0,100610.0,0.28268727]
[1763054079735,0.10527,100630.0,100620.0,0.19876764]
[1763054080211,0.06492,100630.0,100620.0,0.25470764]
[1763054080429,0.0437,100650.0,100640.0,0.19872813]
[1763054080645,0.30732839,100650.0,100630.0,0.30254788]
[1763054081500,0.19872813,100640.0,100630.0,0.02069]
[1763054081721,0.19874788,100630.0,100610.0,0.40839993]
[1763054081917,0.19874788,100630.0,100620.0,0.19876764]
[1763054082344,0.19872813,100640.0,100620.0,0.33781764]
[1763054082564,0.19872813,100640.0,100630.0,0.21943788]
[1763054083186,0.19872813,100640.0,100630.0,0.02069]
[1763054083396,0.33130813,100640.0,100620.0,0.19876764]
[1763054083625,0.19872813,100640.0,100630.0,0.35848788]
[1763054083837,0.19872813,100640.0,100630.0,0.02069]
[1763054084038,0.42947728,100640.0,100620.0,0.19876764]
[1763054084246,0.25189788,100630.0,100610.0,0.40839993]
[1763054084458,0.25189788,100630.0,100620.0,0.19876764]
[1763054084672,0.37632728,100640.0,100620.0,0.19876764]
[1763054085081,0.19874788,100630.0,100620.0,0.19876764]
[1763054085675,0.33132788,100630.0,100620.0,0.19876764]
[1763054086389,0.33132788,100630.0,100620.0,0.001]
[1763054086502,0.39620788,100630.0,100620.0,0.001]
[1763054086960,0.39620788,100630.0,100620.0,0.002]
[1763054087334,1.04214401,100630.0,100620.0,0.002]
[1763054087554,0.39590788,100630.0,100620.0,0.002]
[1763054088500,0.31677788,100630.0,100620.0,0.20076764]
[1763054088916,0.11803,100630.0,100620.0,0.20076764]
[1763054089244,0.31677788,100630.0,100620.0,0.20076764]
[1763054089649,0.37632728,100640.0,100620.0,0.25670764]
[1763054089871,0.06488,100630.0,100620.0,0.25670764]
[1763054090153,0.06488,100630.0,100620.0,0.33981764]
[1763054090446,0.37632728,100640.0,100630.0,0.19874788]
[1763054090447,0.44120728,100640.0,100630.0,0.19874788]
[1763054090655,0.36177728,100640.0,100630.0,0.02069]
[1763054090823,0.49435728,100640.0,100620.0,0.28737094]
[1763054091028,0.26360813,100640.0,100630.0,0.27537788]
[1763054091233,0.3172238,100650.0,100630.0,0.35848788]
[1763054091439,0.3317738,100650.0,100630.0,0.35848788]
[1763054091638,0.3966538,100650.0,100630.0,0.27537788]
[1763054091840,0.19874788,100630.0,100620.0,0.20870602]
[1763054092092,0.42947728,100640.0,100620.0,0.20870602]
[1763054092791,0.42947728,100640.0,100620.0,0.29181602]
[1763054093024,0.19874788,100630.0,100620.0,0.29181602]
[1763054093238,0.19874788,100630.0,100620.0,0.29281602]
[1763054093413,0.19874788,100630.0,100620.0,0.13905]
[1763054093644,0.19874788,100630.0,100620.0,0.25470764]
[1763054094105,0.19872813,100640.0,100630.0,0.19874788]
[1763054094224,0.19872813,100640.0,100630.0,0.26750788]
[1763054095030,0.19874788,100630.0,100620.0,0.19976764]
[1763054095238,0.19874788,100630.0,100620.0,0.20076764]
[1763054095443,0.19874788,100630.0,100620.0,0.25570764]
[1763054095731,0.19874788,100630.0,100620.0,0.25470764]
[1763054095936,0.19874788,100630.0,100620.0,0.33781764]
[1763054096153,0.19874788,100630.0,100620.0,0.25470764]
[1763054096551,0.19874788,100630.0,100620.0,0.25570764]
[1763054096753,0.19874788,100630.0,100620.0,0.25670764]
[1763054096889,0.19874788,100630.0,100620.0,0.05794]
[1763054097089,0.19874788,100630.0,100620.0,0.25670764]
[1763054097808,0.25189788,100630.0,100620.0,0.25670764]
[1763054098007,0.25189788,100630.0,100620.0,0.002]
[1763054098255,0.33132788,100630.0,100620.0,0.002]
[1763054098949,0.39620788,100630.0,100620.0,0.002]
[1763054099874,0.19746,100630.0,100620.0,0.002]
[1763054100107,1.04244401,100630.0,100620.0,0.002]
[1763054100313,0.39620788,100630.0,100620.0,0.002]
[1763054100723,1.04244401,100630.0,100620.0,0.002]
[1763054100933,1.36544401,100630.0,100620.0,0.002]
[1763054101147,1.36544401,100630.0,100620.0,0.001]
[1763054101354,1.36544401,100630.0,100610.0,0.00013988]
[1763054101355,0.19876764,100620.0,100610.0,0.00013988]
[1763054101539,0.29693679,100620.0,100610.0,0.00013988]
[1763054101778,0.06488,100620.0,100610.0,0.24873727]
[1763054101981,0.001,100630.0,100620.0,0.19876764]
[1763054102186,0.06488,100630.0,100620.0,0.32807764]
[1763054102403,0.06688,100630.0,100620.0,0.32807764]
[1763054102611,0.06888,100630.0,100620.0,0.32807764]
[1763054102828,0.06488,100630.0,100620.0,0.32807764]
[1763054103492,0.37171368,100640.0,100630.0,0.19874788]
[1763054103713,0.37171368,100640.0,100630.0,0.21943788]
[1763054103921,0.42574368,100640.0,100630.0,0.21943788]
[1763054104380,0.2523438,100650.0,100630.0,0.34874788]
[1763054104589,0.3172238,100650.0,100630.0,0.29893788]
[1763054104799,0.19872813,100640.0,100630.0,0.29901788]
[1763054105010,0.20072813,100640.0,100630.0,0.29901788]
[1763054105281,0.20072813,100640.0,100630.0,0.26932788]
[1763054105484,0.3978138,100650.0,100630.0,0.26932788]
[1763054105896,0.3988138,100650.0,100630.0,0.26932788]
[1763054106103,1.04504993,100650.0,100630.0,0.26932788]
[1763054106319,0.3988138,100650.0,100630.0,0.34882788]
[1763054106548,0.3988138,100650.0,100630.0,0.26932788]
[1763054106747,1.04504993,100650.0,100630.0,0.34882788]
[1763054106957,0.3988138,100650.0,100640.0,0.19872813]
[1763054107168,0.001,100650.0,100640.0,0.24853813]
[1763054107384,0.001,100650.0,100640.0,1.340693]
[1763054107804,0.38620879,100690.0,100660.0,0.19868865]
[1763054108044,0.45108879,100690.0,100670.0,0.24847891]
[1763054108271,0.19864918,100680.0,100670.0,0.02079]
[1763054108493,0.25267918,100680.0,100670.0,0.02079]
[1763054108714,0.46102026,100690.0,100670.0,0.26926891]
[1763054108987,0.19864918,100680.0,100670.0,0.34475891]
[1763054109167,1.10772239,100690.0,100670.0,0.26926891]
[1763054109469,0.074166,100690.0,100680.0,0.19864918]
[1763054109678,0.27279545,100690.0,100680.0,0.25171918]
[1763054109907,0.27279545,100690.0,100680.0,0.05307]
[1763054110123,0.19864918,100680.0,100670.0,0.02079]
[1763054110348,0.19864918,100680.0,100670.0,0.21945891]
[1763054110564,0.000466,100690.0,100680.0,0.19864918]
[1763054110781,0.19909545,100690.0,100680.0,0.25171918]
[1763054110998,0.000466,100690.0,100680.0,0.25171918]
[1763054111220,0.000466,100690.0,100680.0,0.32720918]
[1763054111431,0.19864918,100680.0,100670.0,0.02179]
[1763054111685,0.23613545,100690.0,100670.0,0.29594891]
[1763054111895,0.19864918,100680.0,100670.0,0.29494891]
[1763054112339,0.19864918,100680.0,100670.0,0.14935]
[1763054112546,0.19864918,100680.0,100670.0,0.34801891]
[1763054113410,0.23613545,100690.0,100680.0,0.19864918]
[1763054113621,0.037506,100690.0,100680.0,0.25171918]
[1763054113845,0.000466,100690.0,100680.0,0.32720918]
[1763054114078,0.000466,100690.0,100680.0,0.69362792]
[1763054115139,0.000466,100690.0,100680.0,1.33986405]
[1763054115361,0.000466,100690.0,100680.0,1.34086405]
[1763054115807,0.000466,100690.0,100680.0,1.34186405]
[1763054116473,0.27100585,100740.0,100720.0,0.19855899]
[1763054116791,0.00033983,100740.0,100730.0,0.28310058]
[1763054116901,0.00033983,100740.0,100730.0,0.32651932]
[1763054117111,0.00033983,100740.0,100730.0,0.40200932]
[1763054117776,0.00133983,100740.0,100730.0,0.40200932]
[1763054118255,0.00033983,100740.0,100730.0,0.40200932]
[1763054118895,0.00033983,100740.0,100730.0,1.37124545]
[1763054119966,0.00033983,100740.0,100730.0,1.38124769]
[1763054120410,0.00033983,100740.0,100730.0,0.73601156]
[1763054120643,0.00033983,100740.0,100730.0,1.48041684]
[1763054120862,0.00033983,100740.0,100730.0,0.62562789]
[1763054121079,0.00033983,100740.0,100730.0,0.72700932]
[1763054121496,0.00033983,100740.0,100730.0,0.72900932]
[1763054121721,0.00033983,100740.0,100730.0,0.72700932]